bitfinex-derivatives/quotes_ETHF0:USTF0_20250214
["timestamp","ask_amount","ask_price","bid_price","bid_amount"]
[1739570157994,40.8,2740.8,2740.7,3.55308663]
[1739570158299,0.00547435,2741.4,2740.7,6.03140663]
[1739570158491,0.72937,2741.2,2741.0,0.7294]
[1739570158793,0.00547435,2741.4,2741.0,6.03140663]
[1739570158986,0.00547435,2741.4,2741.1,0.6604]
[1739570159392,40.8,2741.3,2741.2,0.72934]
[1739570159792,40.8,2741.3,2741.2,0.72935]
[1739570160499,0.00547435,2741.4,2741.1,0.6604]
[1739570160690,0.00547435,2741.4,2741.3,6.76072663]
[1739570160894,0.00547435,2741.4,2741.3,9.33313062]
[1739570161199,0.00547435,2741.4,2741.3,8.60381062]
[1739570161490,0.00547435,2741.4,2741.3,5.7828]
[1739570161693,0.73477435,2741.4,2741.3,2.575]
[1739570162099,0.72935,2741.2,2741.1,0.6604]
[1739570162298,0.6393,2741.3,2741.1,0.6604]
[1739570162502,0.73478435,2741.4,2741.1,0.6604]
[1739570162693,0.73478435,2741.4,2741.2,3.2078]
[1739570163195,0.73478435,2741.4,2741.2,3.93714]
[1739570163395,0.73478435,2741.4,2741.2,3.2078]
[1739570163599,0.72932,2741.3,2741.2,3.2078]
[1739570164299,40.8,2741.3,2741.2,3.93715]
[1739570166199,41.52932,2741.3,2741.2,5.7818]
[1739570166989,40.8,2741.3,2741.2,5.7818]
[1739570167193,40.8,2741.3,2741.2,6.51115]
[1739570168196,40.8,2741.3,2741.2,7.15515]
[1739570168596,0.00547435,2741.4,2741.3,0.72932]
[1739570168798,0.00547435,2741.4,2741.3,4.17832663]
[1739570171001,0.73477435,2741.4,2741.3,3.1994]
[1739570171200,0.72932,2741.3,2741.2,3.2078]
[1739570171505,0.72932,2741.3,2741.1,3.2344]
[1739570171506,0.72935,2741.2,2741.1,3.2344]
[1739570171908,42.14275,2741.2,2741.1,2.574]
[1739570172512,40.8,2741.2,2741.1,3.30338]
[1739570173704,0.00547435,2741.4,2741.3,0.72932]
[1739570173901,0.00547435,2741.4,2741.2,3.2078]
[1739570174102,41.53477435,2741.4,2741.2,3.93713]
[1739570174302,40.80547435,2741.4,2741.2,3.2078]
[1739570174498,40.80547435,2741.4,2741.3,1.39622]
[1739570174709,40.80547435,2741.4,2741.3,2.04492]
[1739570175101,40.80547435,2741.4,2741.3,1.3156]
[1739570175102,41.53477435,2741.4,2741.3,1.3156]
[1739570175911,40.80547435,2741.4,2741.2,3.2078]
[1739570176108,0.72937,2741.2,2741.1,2.573]
[1739570177313,0.72937,2741.2,2741.1,3.30238]
[1739570177612,0.72935,2741.2,2741.1,3.30238]
[1739570178111,0.72934,2741.3,2741.2,0.72935]
[1739570178306,0.72934,2741.3,2741.2,3.2078]
[1739570180513,41.53478435,2741.4,2741.3,0.72932]
[1739570180815,0.00547435,2741.4,2741.3,3.55292663]
[1739570181013,0.00547435,2741.4,2741.3,4.79862663]
[1739570181714,41.52912,2742.1,2741.9,0.72916]
[1739570181912,0.72914,2742.0,2741.9,0.72916]
[1739570182114,0.72914,2742.0,2741.7,5.39560663]
[1739570182418,0.72914,2742.0,2741.8,1.34717]
[1739570182814,40.8,2742.1,2742.0,0.72914]
[1739570183014,41.52911,2742.1,2741.9,0.72914]
[1739570183208,40.8,2742.1,2741.8,0.62347435]
[1739570183411,40.8,2742.1,2742.0,0.72914]
[1739570183616,40.8,2742.1,2742.0,3.55274663]
[1739570184512,41.52911,2742.1,2741.9,3.8297]
[1739570184713,40.8,2742.1,2741.9,3.2078]
[1739570184914,40.8,2742.1,2741.9,3.8558]
[1739570185121,40.8,2742.1,2742.0,0.72914]
[1739570185508,40.8,2742.1,2742.0,3.55274663]
[1739570185713,0.00547435,2742.2,2742.1,0.72911]
[1739570185913,0.00547435,2742.2,2742.1,3.30111]
[1739570186310,0.73455435,2742.2,2742.1,2.572]
[1739570186517,0.72914,2742.0,2741.9,3.8558]
[1739570186717,0.72914,2742.0,2741.9,3.2078]
[1739570188817,0.6074,2742.1,2742.0,0.72914]
[1739570189022,0.73457435,2742.2,2742.0,0.72914]
[1739570189224,0.00547435,2742.2,2741.9,3.2078]
[1739570189419,0.72912,2742.1,2741.9,3.93694]
[1739570189824,0.72914,2742.0,2741.9,3.2078]
[1739570191023,0.00547435,2742.2,2741.9,3.2078]
[1739570191230,0.00547435,2742.2,2741.9,3.8425]
[1739570191429,0.73456435,2742.2,2742.1,0.72911]
[1739570192325,0.72911,2742.1,2742.0,2.571]
[1739570192828,0.00547435,2742.2,2742.0,2.571]
[1739570193031,0.00547435,2742.2,2742.1,0.72911]
[1739570193328,0.73455435,2742.2,2742.1,0.72911]
[1739570193529,0.00547435,2742.2,2742.1,0.72911]
[1739570193727,0.73457435,2742.2,2742.0,3.30013]
[1739570193922,0.00547435,2742.2,2741.9,3.8425]
[1739570194231,0.72914,2742.0,2741.9,3.2078]
[1739570195131,0.65057435,2742.2,2741.9,3.2078]
[1739570195321,0.72914,2742.0,2741.9,3.2078]
[1739570198333,0.72914,2742.0,2741.9,3.93696]
[1739570198730,0.00547435,2742.2,2741.9,3.2078]
[1739570198930,0.72913,2742.1,2742.0,0.72913]
[1739570199640,0.72914,2742.0,2741.9,3.93695]
[1739570199841,0.00547435,2742.2,2741.9,3.2078]
[1739570200039,0.72913,2742.1,2742.0,0.72913]
[1739570200240,0.72913,2742.1,2742.0,1.34703]
[1739570200538,0.72913,2742.1,2742.0,0.6179]
[1739570201137,0.00547435,2742.2,2741.9,3.2078]
[1739570201331,0.72914,2742.0,2741.9,3.2078]
[1739570202443,0.72914,2742.0,2741.9,3.93696]
[1739570202742,0.72914,2742.0,2741.9,3.2078]
[1739570203245,0.72914,2742.0,2741.9,3.93696]
[1739570203428,0.72914,2742.0,2741.9,3.2078]
[1739570204041,0.00547435,2742.2,2741.9,3.2078]
[1739570204343,0.72911,2742.1,2742.0,0.6089]
[1739570204536,0.72911,2742.1,2742.0,1.33804]
[1739570204837,0.00547435,2742.2,2742.1,0.72911]
[1739570205045,0.00547435,2742.2,2742.1,3.96091]
[1739570206243,5.7768,2743.4,2742.1,3.96091]
[1739570206244,3.2078,2743.4,2742.1,9.2318]
[1739570206440,0.72886,2743.1,2742.8,0.72891]
[1739570206652,0.6474,2743.2,2742.9,0.6628]
[1739570206653,41.52887,2743.0,2742.9,0.6628]
[1739570206945,40.8,2743.0,2742.5,5.7768]
[1739570207142,0.72897,2742.7,2742.5,6.4396]
[1739570207642,0.72898,2742.6,2742.5,6.4396]
[1739570208250,0.72898,2742.6,2742.5,5.7768]
[1739570208441,0.72898,2742.6,2742.5,2.569]
[1739570208747,0.72901,2742.5,2742.3,0.72905]
[1739570209346,0.72901,2742.5,2742.2,5.7768]
[1739570209347,0.6228,2742.8,2742.2,5.7768]
[1739570209546,3.8304,2742.7,2742.2,5.7768]
[1739570209745,3.2078,2742.7,2742.2,5.7768]
[1739570210048,0.729,2742.5,2742.4,0.72902]
[1739570211138,0.72906,2742.3,2742.2,5.7768]
[1739570211334,5.03019,2742.7,2742.2,5.7768]
[1739570211335,0.6464,2742.4,2742.2,5.7768]
[1739570212037,0.72902,2742.5,2742.2,5.7768]
[1739570212338,0.72902,2742.5,2742.3,0.72906]
[1739570212537,3.2078,2742.7,2742.2,5.7768]
[1739570212738,0.72898,2742.6,2742.4,0.72902]
[1739570213146,0.729,2742.5,2742.4,0.72902]
[1739570214441,0.729,2742.6,2742.4,0.72902]
[1739570215148,0.72903,2742.4,2742.2,5.7768]
[1739570215446,0.72903,2742.4,2742.3,0.72906]
[1739570215634,0.6464,2742.8,2742.2,6.1416]
[1739570215837,0.72904,2742.4,2742.3,0.72904]
[1739570216244,2.46875,2742.8,2742.3,0.72906]
[1739570216245,0.72903,2742.5,2742.3,0.72906]
[1739570216445,0.72903,2742.5,2742.4,0.6388]
[1739570216838,0.72908,2742.2,2742.1,0.6363]
[1739570217038,0.72908,2742.2,2742.1,3.2043]
[1739570218652,0.72914,2742.0,2741.9,3.2078]
[1739570218950,0.72914,2742.0,2741.9,4.4692]
[1739570219451,0.72914,2742.0,2741.9,5.19836]
[1739570219647,0.6246,2742.4,2741.9,4.4692]
[1739570219849,3.2078,2742.6,2742.2,3.2078]
[1739570220050,0.00359574,2743.0,2742.9,0.7289]
[1739570220351,0.73247574,2743.0,2742.8,0.72892]
[1739570220556,0.72891,2742.9,2742.8,2.567]
[1739570220755,40.80359574,2743.0,2742.8,2.567]
[1739570220945,40.80359574,2743.0,2742.9,0.7289]
[1739570221149,40.80359574,2743.0,2742.9,1.3408]
[1739570221751,40.80359574,2743.0,2742.9,0.6119]
[1739570222853,0.00359574,2743.0,2742.9,0.6119]
[1739570223153,0.00359574,2743.0,2742.9,1.3408]
[1739570223355,40.80359574,2743.0,2742.9,1.3408]
[1739570225656,40.80359574,2743.0,2742.8,6.03140663]
[1739570225961,40.80359574,2743.0,2742.9,2.567]
[1739570226160,40.80359574,2743.0,2742.9,3.2959]
[1739570227058,40.80359574,2743.0,2742.9,2.567]
[1739570227862,40.80359574,2743.0,2742.9,3.2959]
[1739570228859,0.00359574,2743.0,2742.9,3.2959]
[1739570230559,40.8,2743.7,2742.9,3.2959]
[1739570230861,40.8,2743.7,2743.6,3.93651]
[1739570231056,40.8,2743.7,2743.6,6.50251]
[1739570231258,0.72857,2744.2,2743.9,0.72862]
[1739570231560,3.2078,2744.6,2744.4,0.72848]
[1739570231763,40.8,2744.5,2744.2,2.82360663]
[1739570232065,40.8,2744.5,2744.4,0.7285]
[1739570232262,0.6201,2744.9,2744.6,0.72843]
[1739570232464,1.34848,2744.9,2744.7,2.566]
[1739570232763,42.14848,2744.9,2744.7,2.566]
[1739570232965,41.4201,2744.9,2744.7,2.566]
[1739570234165,0.72839,2744.8,2744.7,2.566]
[1739570235159,41.4201,2744.9,2744.7,2.566]
[1739570235662,42.14848,2744.9,2744.7,2.56295535]
[1739570235960,41.4201,2744.9,2744.7,2.56295535]
[1739570236166,41.4201,2744.9,2744.7,3.29136535]
[1739570236367,41.52838,2744.9,2744.7,2.56295535]
[1739570236569,42.18278,2744.9,2744.7,3.29137535]
[1739570236864,41.52838,2744.9,2744.7,2.56295535]
[1739570237067,0.29712193,2745.7,2744.7,2.56295535]
[1739570237068,3.2078,2745.9,2744.8,6.63420663]
[1739570237265,0.6544,2745.5,2745.1,3.2078]
[1739570237559,0.72829,2745.2,2745.1,0.00546428]
[1739570238259,41.52829,2745.2,2745.1,0.00546428]
[1739570240168,0.72845,2744.6,2744.5,3.29246]
[1739570240465,0.72845,2744.6,2744.5,2.564]
[1739570241454,0.7285,2744.4,2744.3,0.00546428]
[1739570242161,41.5285,2744.4,2744.3,0.00546428]
[1739570242973,0.72863,2743.9,2743.8,2.564]
[1739570243162,0.72863,2743.9,2743.5,5.7718]
[1739570243163,0.72866,2743.9,2743.5,5.7718]
[1739570243465,3.2078,2744.0,2743.5,3.2078]
[1739570243660,0.6473,2744.2,2743.0,0.6551]
[1739570243661,0.7288,2743.3,2743.0,3.93665]
[1739570243862,0.72882,2743.3,2743.0,3.93665]
[1739570244063,1.2907,2743.6,2743.0,3.2078]
[1739570244259,0.00546428,2743.4,2743.0,3.2078]
[1739570244768,0.73423428,2743.4,2743.0,3.2078]
[1739570245079,0.73423428,2743.4,2743.1,0.72882]
[1739570245263,0.00546428,2743.4,2743.1,0.72882]
[1739570245463,0.00546428,2743.4,2743.0,3.2078]
[1739570245761,0.00546428,2743.4,2742.9,0.00546428]
[1739570245762,2.82360663,2743.2,2742.9,0.00546428]
[1739570245964,0.00546428,2743.4,2742.8,3.2078]
[1739570246168,0.72883,2743.2,2742.9,0.72889]
[1739570246369,0.72882,2743.2,2742.9,0.72889]
[1739570246570,0.72883,2743.2,2742.9,0.72889]
[1739570246771,0.72883,2743.2,2742.8,3.2078]
[1739570246967,0.7288,2743.3,2743.0,0.72886]
[1739570247572,0.00546428,2743.4,2742.8,3.8732]
[1739570247573,0.72885,2743.1,2742.8,3.8732]
[1739570247767,3.21326428,2743.4,2742.8,6.4372]
[1739570248067,3.21326428,2743.4,2743.1,0.72884]
[1739570248068,3.94204428,2743.4,2743.1,0.72884]
[1739570248265,0.00546428,2743.4,2743.2,0.72881]
[1739570248667,0.00546428,2743.4,2743.3,0.72879]
[1739570248866,0.00546428,2743.4,2743.3,1.34789]
[1739570249370,0.00546428,2743.4,2743.3,3.91189]
[1739570250166,0.00546428,2743.4,2743.3,4.53529]
[1739570251271,40.8,2744.4,2743.3,9.8065]
[1739570251474,40.8,2744.4,2743.9,3.2078]
[1739570251663,40.8,2744.4,2743.9,5.7718]
[1739570251865,41.52851,2744.4,2744.2,3.2078]
[1739570252171,40.8,2744.4,2744.2,3.2078]
[1739570252369,41.52851,2744.4,2744.2,3.2078]
[1739570252872,40.8,2744.4,2744.2,3.93634]
[1739570254465,41.5285,2744.4,2744.2,3.2078]
[1739570254665,40.8,2744.4,2744.2,3.2078]
[1739570254864,40.8,2744.4,2744.2,3.93635]
[1739570255670,0.72853,2744.3,2744.2,3.2078]
[1739570256474,0.72856,2744.2,2743.9,6.86522]
[1739570256675,0.72856,2744.2,2743.9,5.7718]
[1739570256876,40.8,2744.4,2743.9,5.7718]
[1739570257072,0.72859,2744.1,2743.9,3.2078]
[1739570257570,0.72861,2744.0,2743.9,3.2078]
[1739570257775,0.72864,2743.9,2743.7,2.563]
[1739570258378,47.54050353,2744.4,2743.7,2.563]
[1739570258672,0.72862,2744.0,2743.8,0.72865]
[1739570259376,0.72859,2744.1,2743.9,0.72862]
[1739570260477,0.72861,2744.0,2743.9,0.72862]
[1739570261673,47.54050353,2744.4,2743.7,5.7708]
[1739570262073,0.72857,2744.2,2744.1,0.72857]
[1739570262276,0.72856,2744.2,2744.1,0.72857]
[1739570262678,0.72858,2744.1,2744.0,0.72859]
[1739570263181,1.82152,2744.0,2743.5,0.6316]
[1739570263478,0.72864,2743.9,2743.8,0.72864]
[1739570263684,0.72867,2743.8,2743.7,0.72867]
[1739570264075,1.2276,2744.0,2743.5,0.6316]
[1739570264378,49.36180353,2744.4,2743.6,1.82179]
[1739570264379,45.82908,2744.4,2743.6,1.82179]
[1739570264574,45.82908,2744.4,2743.9,0.72861]
[1739570264575,0.72861,2744.0,2743.9,0.72861]
[1739570264771,0.6176,2744.3,2743.9,0.72861]
[1739570264976,0.6176,2744.3,2743.7,5.0295]
[1739570265276,1.82139,2744.2,2743.8,2.563]
[1739570265471,0.6176,2744.3,2743.8,2.563]
[1739570265472,0.72863,2743.9,2743.8,2.563]
[1739570265677,1.82146,2744.1,2743.7,0.72868]
[1739570265877,2.43895,2744.3,2743.9,0.72863]
[1739570266186,1.8214,2744.2,2743.5,5.01644]
[1739570266478,0.72867,2743.8,2743.7,0.72866]
[1739570266781,3.2078,2744.1,2743.5,0.6316]
[1739570267082,0.7287,2743.7,2743.6,0.7287]
[1739570267478,0.72871,2743.6,2743.5,1.36032]
[1739570267678,0.72868,2743.8,2743.7,0.72867]
[1739570267873,0.72871,2743.6,2743.5,0.6316]
[1739570268080,0.72874,2743.5,2743.4,3.856]
[1739570268276,0.72874,2743.5,2743.4,4.58477]
[1739570268480,0.72874,2743.5,2743.4,3.2078]
[1739570268681,1.82174,2743.7,2743.2,2.562]
[1739570268881,0.72879,2743.3,2743.2,3.2908]
[1739570269386,1.82181,2743.6,2743.1,1.289]
[1739570269581,0.72882,2743.3,2743.1,2.01782]
[1739570269780,0.72882,2743.3,2743.1,1.289]
[1739570269987,1.8218,2743.6,2743.1,1.289]
[1739570270182,1.82174,2743.7,2743.1,1.289]
[1739570270488,0.7288,2743.3,2743.2,0.72882]
[1739570270984,40.8,2743.5,2743.1,1.289]
[1739570271680,0.72879,2743.4,2743.2,0.7288]
[1739570271984,0.72877,2743.4,2743.2,0.7288]
[1739570272378,4.4715,2743.8,2743.3,5.7698]
[1739570272578,3.8689,2743.8,2743.3,5.7698]
[1739570272778,0.72873,2743.6,2743.4,0.72877]
[1739570272977,3.8689,2743.8,2743.3,5.7698]
[1739570273181,0.72876,2743.5,2743.3,6.49858]
[1739570273585,0.72877,2743.4,2743.3,6.49858]
[1739570273780,0.72874,2743.6,2743.3,5.7698]
[1739570273978,0.72874,2743.6,2743.4,0.72874]
[1739570274582,0.72875,2743.5,2743.3,5.7698]
[1739570274789,0.72877,2743.4,2743.3,3.2078]
[1739570274982,0.72879,2743.3,2743.2,3.2908]
[1739570275178,1.82181,2743.6,2743.1,0.6217]
[1739570275489,0.72882,2743.2,2743.1,0.6217]
[1739570275890,3.2078,2743.5,2743.1,0.6217]
[1739570276093,0.72881,2743.3,2743.2,0.7288]
[1739570276287,3.2078,2743.5,2743.1,0.6217]
[1739570276487,0.72882,2743.2,2743.1,0.6217]
[1739570276678,3.2078,2743.5,2743.1,1.35053]
[1739570276884,0.72882,2743.2,2743.1,1.35053]
[1739570277990,3.2078,2743.5,2743.1,0.6217]
[1739570278193,3.2078,2743.5,2743.3,0.72877]
[1739570278383,0.72872,2743.6,2743.1,0.6217]
[1739570278585,0.6611,2743.8,2743.2,6.02860953]
[1739570278787,3.2078,2743.9,2743.3,2.43816]
[1739570278991,0.72867,2743.8,2743.6,0.7287]
[1739570279184,41.52869,2743.7,2743.6,0.7287]
[1739570279794,40.8,2743.7,2743.5,0.72872]
[1739570279986,41.5287,2743.7,2743.6,0.72871]
[1739570280290,40.8,2743.7,2743.6,0.72871]
[1739570281894,40.8,2743.7,2743.3,0.6162]
[1739570282094,0.72875,2743.5,2743.3,3.1782]
[1739570282291,3.2078,2743.6,2743.1,0.6217]
[1739570282497,0.72877,2743.4,2743.3,0.72878]
[1739570282689,41.4403,2743.7,2743.1,6.3915]
[1739570282690,42.0933,2743.7,2743.1,6.3915]
[1739570282889,0.72877,2743.4,2743.1,6.3915]
[1739570283089,0.72877,2743.4,2743.2,0.72881]
[1739570283289,42.0933,2743.7,2743.4,0.72876]
[1739570283488,41.4403,2743.7,2743.2,1.82205]
[1739570283690,41.4403,2743.7,2743.1,8.21359]
[1739570283990,42.16899,2743.7,2743.6,0.72871]
[1739570284290,41.4403,2743.7,2743.4,3.2078]
[1739570284487,40.8,2743.7,2743.6,0.72871]
[1739570287695,40.8,2743.7,2743.4,3.2078]
[1739570287895,0.6587,2743.6,2743.5,3.29072]
[1739570288099,0.6587,2743.6,2743.5,3.29074]
[1739570288301,1.38741,2743.6,2743.5,0.72874]
[1739570288498,0.6587,2743.6,2743.5,0.72874]
[1739570288699,0.6587,2743.6,2743.4,3.2078]
[1739570288995,1.38743,2743.6,2743.5,0.72874]
[1739570289192,1.38743,2743.6,2743.4,3.2078]
[1739570289397,0.6587,2743.6,2743.4,3.2078]
[1739570289597,0.72874,2743.5,2743.4,3.93656]
[1739570289793,0.6587,2743.6,2743.2,0.637]
[1739570290392,0.72874,2743.5,2743.3,0.72877]
[1739570290592,0.6587,2743.6,2743.2,0.637]
[1739570290798,0.72879,2743.3,2743.2,0.637]
[1739570291097,0.6566,2743.5,2743.1,6.3905]
[1739570291601,0.72882,2743.2,2743.1,7.11934]
[1739570291799,0.6566,2743.5,2743.1,7.11934]
[1739570291992,0.72881,2743.3,2743.1,7.11934]
[1739570292798,0.6566,2743.5,2743.1,6.3905]
[1739570293002,0.72881,2743.3,2743.1,7.11933]
[1739570293303,0.72882,2743.2,2743.1,7.11934]
[1739570293703,0.7288,2743.3,2743.1,7.11934]
[1739570294202,0.6566,2743.5,2743.1,7.11934]
[1739570294203,0.6566,2743.5,2743.1,6.3905]
[1739570294401,0.6566,2743.5,2743.3,0.72878]
[1739570294596,0.6566,2743.5,2743.1,6.3905]
[1739570294801,0.72878,2743.4,2743.2,0.7288]
[1739570295005,0.6566,2743.5,2743.1,6.3905]
[1739570295205,0.72882,2743.2,2743.1,7.11934]
[1739570295403,0.72882,2743.2,2743.1,6.3905]
[1739570295707,0.72881,2743.3,2743.2,0.7288]
[1739570296299,0.6566,2743.5,2743.1,7.11932]
[1739570296300,0.72882,2743.2,2743.1,7.11932]
[1739570296501,0.6566,2743.5,2743.2,0.72881]
[1739570296502,0.72881,2743.3,2743.2,0.72881]
[1739570296804,0.72882,2743.2,2743.1,7.11933]
[1739570297006,0.72881,2743.3,2743.2,0.72881]
[1739570297511,1.38536,2743.5,2743.4,0.72876]
[1739570297699,0.6587,2743.6,2743.1,8.2126]
[1739570297898,1.38741,2743.6,2743.5,0.72874]
[1739570298602,44.0078,2743.7,2743.2,1.82205]
[1739570298808,0.72881,2743.3,2743.2,0.72879]
[1739570299402,44.0078,2743.7,2743.1,3.8295]
[1739570299605,0.72875,2743.6,2743.5,0.72872]
[1739570299904,41.52869,2743.7,2743.6,0.72871]
[1739570300296,40.8,2743.7,2743.6,0.72871]
[1739570301204,40.8,2743.7,2743.5,1.2543]
[1739570301398,0.72874,2743.5,2743.4,2.561]
[1739570301598,1.3052,2743.6,2743.2,0.72881]
[1739570302108,0.72879,2743.3,2743.2,0.72881]
[1739570302607,1.3052,2743.6,2743.1,3.8165]
[1739570302803,0.72881,2743.3,2743.2,0.7288]
[1739570303200,3.127,2743.6,2743.1,3.8165]
[1739570303511,0.72882,2743.2,2743.1,3.8165]
[1739570305103,0.72881,2743.3,2743.2,0.72881]
[1739570305409,0.72882,2743.2,2743.1,1.2555]
[1739570306405,0.72882,2743.2,2743.1,1.98434]
[1739570307110,0.72882,2743.2,2743.1,1.2555]
[1739570307506,0.72882,2743.2,2743.1,1.98434]
[1739570308413,0.72882,2743.2,2743.1,1.2555]
[1739570308813,0.72882,2743.2,2743.1,1.98434]
[1739570310115,0.72882,2743.2,2743.1,1.2555]
[1739570310311,0.72882,2743.2,2743.1,1.98434]
[1739570310926,0.72882,2743.2,2743.1,0.6217]
[1739570311328,0.72882,2743.3,2743.2,0.72879]
[1739570311527,5.0297,2743.5,2743.1,0.6217]
[1739570311727,0.72882,2743.2,2743.1,1.35052]
[1739570312525,0.72887,2743.1,2743.0,0.72884]
[1739570313130,0.72883,2743.3,2743.2,0.72879]
[1739570314127,0.72885,2743.2,2743.1,0.72883]
[1739570314336,0.72881,2743.3,2743.2,0.72879]
[1739570315131,3.93655,2743.5,2743.4,0.72876]
[1739570315436,0.72875,2743.5,2743.4,0.72876]
[1739570316728,0.72876,2743.4,2743.3,1.99117]
[1739570317337,0.72876,2743.4,2743.3,1.2624]
[1739570317632,0.72876,2743.4,2743.3,1.99119]
[1739570318031,0.72876,2743.4,2742.9,5.03004]
[1739570318226,41.4174,2743.7,2743.0,5.00447]
[1739570318427,0.72875,2743.5,2743.4,0.72876]
[1739570319137,0.72879,2743.4,2743.3,0.72878]
[1739570319526,0.72876,2743.5,2743.4,0.72875]
[1739570320035,40.8,2743.7,2743.1,2.559]
[1739570320237,42.62173,2743.7,2743.1,2.559]
[1739570320540,0.72876,2743.5,2743.4,0.72875]
[1739570321538,0.72873,2743.6,2743.5,0.72872]
[1739570324542,40.8,2743.7,2743.6,0.72871]
[1739570328346,0.72854,2744.3,2743.9,3.2078]
[1739570328545,40.8,2744.2,2744.1,0.72858]
[1739570329044,40.8,2744.2,2744.1,1.38188]
[1739570330137,40.8,2744.2,2744.0,1.3713]
[1739570330448,41.52857,2744.2,2744.0,1.3713]
[1739570330638,40.8,2744.2,2744.1,0.72858]
[1739570330841,0.00546428,2744.6,2744.1,3.8236]
[1739570331042,0.72849,2744.5,2744.3,0.72852]
[1739570331347,0.00546428,2744.6,2744.1,3.94533428]
[1739570331348,0.72855,2744.3,2744.1,3.94533428]
[1739570331543,0.72855,2744.2,2744.1,3.94533428]
[1739570331739,0.72854,2744.3,2744.1,3.94533428]
[1739570331940,0.72853,2744.3,2744.1,3.94533428]
[1739570332443,1.34301,2744.4,2744.2,0.72855]
[1739570332639,1.34301,2744.4,2744.3,0.72853]
[1739570332849,0.72853,2744.3,2744.2,0.72854]
[1739570333144,1.34301,2744.4,2744.3,0.72853]
[1739570333337,0.72854,2744.3,2744.2,0.72854]
[1739570333744,0.66,2744.5,2744.1,3.21676428]
[1739570334049,0.73391428,2744.6,2744.5,0.72847]
[1739570334748,0.00546428,2744.6,2744.1,0.65876428]
[1739570334940,0.72852,2744.4,2744.3,0.72852]
[1739570335341,0.72852,2744.4,2744.1,0.65876428]
[1739570335342,0.72855,2744.3,2744.2,0.72855]
[1739570337349,0.72852,2744.4,2744.3,0.7285]
[1739570338754,0.00546428,2744.6,2744.5,0.72847]
[1739570338755,0.73394428,2744.6,2744.5,0.72847]
[1739570339050,0.00546428,2744.6,2744.5,0.72847]
[1739570339953,0.00546428,2744.6,2744.5,1.38047]
[1739570346558,0.00546428,2744.6,2744.5,3.93647]
[1739570358265,0.73391428,2744.6,2744.5,3.93647]
[1739570358562,0.00546428,2744.6,2744.5,3.93647]
[1739570362165,0.73391428,2744.6,2744.5,3.93647]
[1739570362365,0.00546428,2744.6,2744.5,3.93647]
[1739570363870,0.00546428,2744.6,2744.5,7.06754251]
[1739570364170,3.8296,2745.6,2744.5,12.33907251]
[1739570364372,0.6444,2745.5,2745.1,0.72829]
[1739570364570,0.72829,2745.2,2745.1,3.28229]
[1739570364766,0.72829,2745.2,2745.1,2.554]
[1739570365071,0.72829,2745.2,2745.1,3.28231]
[1739570365375,0.72829,2745.2,2745.1,2.554]
[1739570365573,0.72835,2745.0,2744.9,0.72835]
[1739570366074,41.52835,2745.0,2744.9,0.72835]
[1739570368567,0.72837,2744.9,2744.8,3.28238]
[1739570372376,41.4504,2745.0,2744.8,2.554]
[1739570372571,40.8,2745.0,2744.9,0.72837]
[1739570372875,41.52834,2745.0,2744.9,0.72837]
[1739570376574,40.8,2745.0,2744.9,0.72837]
[1739570376774,40.8,2745.0,2744.9,1.34297]
[1739570380280,41.52834,2745.0,2744.9,0.6146]
[1739570380680,40.8,2745.0,2744.8,3.28137]
[1739570380984,0.72837,2744.9,2744.8,2.553]
[1739570383284,1.37587,2744.9,2744.8,2.553]
[1739570383586,0.72837,2744.9,2744.8,2.553]
[1739570383881,41.52836,2745.0,2744.8,3.28138]
[1739570384081,0.72837,2744.9,2744.8,3.28138]
[1739570384677,0.72837,2744.9,2744.8,2.553]
[1739570385183,0.72837,2744.9,2744.8,3.28139]
[1739570386078,0.72839,2744.8,2744.7,0.6284]
[1739570386283,0.72842,2744.7,2744.6,6.48824]
[1739570387181,0.72842,2744.7,2744.6,3.2078]
[1739570387380,0.72852,2744.4,2744.3,3.2078]
[1739570387685,0.72852,2744.4,2744.3,5.7598]
[1739570387886,0.72852,2744.4,2744.3,3.2078]
[1739570388288,2.65995463,2744.6,2744.3,3.2078]
[1739570388487,0.7285,2744.4,2744.3,3.93631]
[1739570390387,0.7285,2744.4,2744.3,3.2078]
[1739570390589,0.7285,2744.4,2744.3,3.93633]
[1739570390782,0.7285,2744.4,2744.3,3.2078]
[1739570391385,0.7285,2744.4,2744.3,3.93633]
[1739570391591,0.72853,2744.3,2744.2,4.54454]
[1739570392392,0.72853,2744.3,2744.2,4.54455]
[1739570393384,3.07984,2744.6,2744.2,4.54455]
[1739570393385,0.72852,2744.4,2744.2,4.54455]
[1739570393694,0.72851,2744.4,2744.3,0.72853]
[1739570393888,1.2587,2744.6,2744.2,3.816]
[1739570394090,0.72853,2744.4,2744.3,0.72852]
[1739570394293,1.2587,2744.6,2744.2,3.816]
[1739570394489,1.2587,2744.6,2744.3,0.72852]
[1739570394490,0.72852,2744.4,2744.3,0.72852]
[1739570394796,0.72853,2744.3,2744.2,4.54453]
[1739570395390,0.72852,2744.4,2744.3,0.72851]
[1739570395688,0.72853,2744.3,2744.2,4.54452]
[1739570397494,0.72852,2744.4,2744.3,0.72851]
[1739570400093,0.72848,2744.6,2744.2,5.63738]
[1739570400298,0.72851,2744.5,2744.4,0.72848]
[1739570400493,3.8663,2744.7,2744.2,1.264]
[1739570400695,3.8663,2744.7,2744.1,0.00546428]
[1739570400696,0.72855,2744.2,2744.1,0.00546428]
[1739570400897,3.86072276,2744.2,2744.1,0.00546428]